Cogmind - Beta 15 @@@ ROGUE MODE // 2025.10.06 @ 18:25:04 Player: chebyrekser Result: Exoskeleton Destroyed Performance ------------- Evolutions (9) 4500 Regions Visited (15) 3000 Robots Destroyed (206) 1030 Value Destroyed (5775) 5775 Prototype IDs (19) 380 Alien Tech Used (15) 3000 Bonus (22259) 22259 TOTAL SCORE: 39944 Bonus ------- Triggered Max Security 2000 High Alert Combat Kills 1169 Follower Combat Kills 90 Used Core Reset Matrix 3000 Scanned by Researcher 500 Pursued by Intercept 500 Integrated Exoskeleton 5000 Met MAIN.C 5000 Destroyed MAIN.C Shell 5000 Cogmind --------- Core Integrity 0/1600 Matter 211/300 Energy 450/450 System Corruption 0% +Membrane Temperature Warm (172) Movement Walking (30) Location -1/Command Parts ------- > --- POWER (1) -------- Quantum Reactor > --- PROPULSION (3) --- Sigix Exoskeleton > --- UTILITY (5) ------ Medium Storage Unit Advanced Reaction Control System Graphene Brace Spacefold Activator > --- WEAPON (3) ------- Sigix Sheargun Sigix Sheargun Sigix Sheargun > --- INVENTORY (12) --- Advanced Transmission Jammer Phase Redirector Terrabomb Terrabomb Microwarp Drive Enhanced Nova Cannon Gamma Bomb Array Improved Plasma Cutter Peak State ------------ > --- POWER ------------ Quantum Reactor > --- PROPULSION ------- Sigix Exoskeleton > --- UTILITY ---------- Medium Storage Unit Spacefold Activator Microwarp Drive > --- WEAPON ----------- Sigix Sheargun Sigix Sheargun Sigix Sheargun > --- INVENTORY -------- Advanced Transmission Jammer Advanced Reaction Control System Graphene Brace Phase Redirector Terrabomb Terrabomb Enhanced Nova Cannon Gamma Bomb Array Improved Plasma Cutter [Rating: 269] Favorites ----------- Power Light Antimatter Reactor Engine Heavy Ion Engine Power Core Fission Core Reactor Light Antimatter Reactor Propulsion Armored Wheel Treads Light Treads Leg Sigix Exoskeleton Wheel Armored Wheel Flight Unit Improved Flight Unit Utility Medium Storage Unit Device Advanced Transmission Jammer Storage Medium Storage Unit Processor Advanced Signal Interpreter Hackware Hacking Suite Protection Improved Light Armor Plating Artifact Spacefold Activator Weapon Sigix Sheargun Energy Gun Sigix Sheargun Energy Cannon Advanced Beam Cannon Ballistic Gun Minigun Ballistic Cannon Light Cannon Launcher Shock Bomb Launcher Special Weapon Improved Plasma Cutter Impact Weapon Great Maul Slashing Weapon Scythe Build | -11 -10 -10 -9 -9 -8 -7 -6 -5 -4 -3 -2 -2 -2 -1 -1 ------- Run | Yrd Mat Min Mat Min Mat Fac Fac Fac Fac Res Res Qua Sec Acc Com Slots Evolved 18 | . . . 2 . 2 2 2 2 2 2 2 . . 2 . Power 1 | . . . . . . . . . . 1 . . . . . Propulsion 5 | . . . 1 . 1 2 . . 1 . . . . . . Utility 11 | . . . 1 . 1 . 2 2 1 1 2 . . 1 . Weapon 1 | . . . . . . . . . . . . . . 1 . Parts Attached 144 | 7 16 6 32 2 16 14 7 8 4 8 3 8 6 3 4 Power 19 | 1 1 1 6 . 1 2 1 1 1 . 1 1 . 1 1 Engine 11 | 1 1 1 6 . 1 1 . . . . . . . . . Core 4 | . . . . . . 1 1 1 1 . . . . . . Reactor 4 | . . . . . . . . . . . 1 1 . 1 1 Propulsion 44 | 2 6 3 11 . 7 7 2 1 1 3 . . 1 . . Treads 19 | 1 2 3 7 . 6 . . . . . . . . . . Leg . | . . . . . . . . . . . . . . . . Wheel 10 | 1 4 . 4 . 1 . . . . . . . . . . Hover . | . . . . . . . . . . . . . . . . Flight 15 | . . . . . . 7 2 1 1 3 . . 1 . . Utility 51 | 2 5 . 8 1 3 4 4 5 2 4 2 6 2 2 1 Device 23 | 1 3 . 2 1 1 . 2 2 1 3 2 3 1 1 . Storage 5 | 1 2 . . . . 2 . . . . . . . . . Processor 6 | . . . . . . 1 2 2 1 . . . . . . Hackware 7 | . . . 2 . . 1 . 1 . 1 . 1 . 1 . Protection 6 | . . . 4 . 2 . . . . . . . . . . Artifact 4 | . . . . . . . . . . . . 2 1 . 1 Weapon 30 | 2 4 2 7 1 5 1 . 1 . 1 . 1 3 . 2 Energy Gun 8 | 1 1 1 3 . . . . . . . . . 1 . 1 Energy Cannon 5 | . . . 1 . . 1 . . . . . 1 1 . 1 Ballistic Gun 6 | 1 1 1 2 . 1 . . . . . . . . . . Ballistic Cannon 1 | . 1 . . . . . . . . . . . . . . Launcher 5 | . . . . 1 2 . . . . 1 . . 1 . . Special Weapon 3 | . 1 . . . 1 . . 1 . . . . . . . Impact Weapon 1 | . . . 1 . . . . . . . . . . . . Slashing Weapon 1 | . . . . . 1 . . . . . . . . . . Piercing Weapon . | . . . . . . . . . . . . . . . . Special Melee Weapon . | . . . . . . . . . . . . . . . . Unidentified Prototypes 7 | . . . 2 . . 1 . . . . . 3 1 . . Parts Lost 18 | . 1 . 3 . 1 . 3 . 2 . 5 . 3 . . Power 3 | . . . . . . . 1 . 1 . . . 1 . . Propulsion 7 | . 1 . 1 . . . 1 . 1 . 2 . 1 . . Utility 6 | . . . 1 . 1 . . . . . 3 . 1 . . Weapon 2 | . . . 1 . . . 1 . . . . . . . . Highest Loss Streak 3 | . 1 . 2 . 1 . 3 . 1 . 3 . 3 . . To Critical Strikes . | . . . . . . . . . . . . . . . . Average Backups 15 | 5 17 24 24 25 24 11 9 9 9 9 8 9 8 9 9 Power . | . 1 1 2 2 2 1 . 1 . . . 1 . . . Propulsion 3 | 3 6 7 8 9 8 1 . . . . . . . . . Utility 5 | . 5 7 8 8 9 6 4 5 5 5 4 3 2 3 3 Weapon 3 | 1 3 7 4 4 3 2 3 2 2 2 2 2 2 2 2 Tool/Special . | . . . . . . . . . . . . . . . . Unused Backups 41 | 1 4 1 18 1 4 4 2 1 . . . 3 . . 2 Power 4 | . . . 2 . 1 . 1 . . . . . . . . Propulsion 10 | 1 2 . 5 . 2 . . . . . . . . . . Utility 11 | . 1 1 4 . 1 3 . 1 . . . . . . . Weapon 13 | . 1 . 7 1 . 1 1 . . . . 2 . . . Tool/Special 3 | . . . . . . . . . . . . 1 . . 2 Average Slot Usage (%) 90 | . 100 100 99 100 98 90 93 87 91 88 88 74 76 82 75 Engine 5 | . 14 14 11 11 9 4 4 4 . . . . . . . Reactor 3 | . . . . . . . . . . . 3 . . 7 8 Treads 6 | . 15 14 13 11 17 1 . . . . . . . . . Leg 3 | . . . . . . . . . . . . . 8 8 8 Wheel 7 | . 12 14 19 22 17 . . . . . . . . . . Flight 2 | . . . . . . 35 36 28 29 26 25 17 4 . . Device 12 | . 14 14 7 10 8 5 5 9 5 8 15 15 21 16 12 Storage 9 | . 14 14 11 11 9 7 6 5 5 4 4 4 8 8 8 Processor 1 | . . . . . . 6 13 11 19 16 13 13 2 . . Hackware 8 | . . . 10 11 9 8 13 16 15 16 16 15 3 7 3 Protection 1 | . . . 3 . 9 . . . . . . . . . . Artifact 3 | . . . . . . . . . . . . . . 8 9 Energy Gun 9 | . 12 . 9 . . . . . . . . . 12 16 19 Energy Cannon 1 | . . . 1 9 3 . . . . 2 3 . . . . Ballistic Gun 4 | . 13 14 8 11 8 . . . . . . . . . . Special Weapon 3 | . . . . . . 5 3 1 5 . . . . 7 4 Slashing Weapon 1 | . . . . . 5 7 6 5 5 4 4 4 . . . Peak Build Rating 269 | 7 12 14 27 27 33 39 60 71 81 95 107 104 230 244 269 Average Rating 126 | 5 10 11 22 26 31 36 52 64 78 88 101 82 189 243 248 On Entrance 67 | . 7 11 14 27 27 33 39 56 71 75 92 67 89 230 244 Naked Turns . | . . . . . . . . . . . . . . . . Heaviest Build 103 | 12 92 92 100 100 103 99 24 26 26 35 35 27 44 43 58 Greatest Support 60 | 20 40 16 24 24 24 30 34 33 40 42 42 29 60 60 60 Greatest Overweight (x) 9 | 1 9 9 7 4 4 4 . . . . . . . . . Average Overweight (x) 1 | . 6 8 3 3 3 . . . . . . . . . . Largest Inventory Capacity 25 | 8 25 25 25 25 25 25 10 10 10 10 10 10 12 12 12 Average Capacity 17 | 7 21 25 25 25 25 11 10 10 10 10 10 10 10 12 12 Most Carried 25 | 8 25 25 25 25 25 25 10 10 10 10 10 10 12 12 12 Average Carried 16 | 5 17 24 24 24 24 10 9 9 9 9 8 9 8 11 10 Final Capacity 25 | 8 25 25 25 25 25 10 10 10 10 10 10 10 12 12 12 Final Carried 25 | 8 25 25 25 25 25 10 10 10 9 10 10 10 11 11 10 Class Distribution -------------------- 44% | Alien-Sigix 41% | Mutant 4% | Hacker-Ninja 3% | Hacker-Scout Dominant Class ---------------- Mutant | -10/Materials Mutant | -10/Mines Mutant | -9/Materials Mutant | -9/Mines Mutant | -8/Materials Sprinter | -7/Factory Hacker-Scout | -6/Factory Hacker-Scout | -5/Factory Hacker-Scout | -4/Factory Hacker-Ninja | -3/Research Hacker-Ninja | -2/Research Hacker-Ninja | -2/Quarantine Alien-Sigix | -2/Section 7 Alien-Sigix | -1/Access Alien-Sigix | -1/Command Resources | -11 -10 -10 -9 -9 -8 -7 -6 -5 -4 -3 -2 -2 -2 -1 -1 ----------- Run | Yrd Mat Min Mat Min Mat Fac Fac Fac Fac Res Res Qua Sec Acc Com Matter Collected 4990 | 290 699 140 1312 126 1037 . 230 163 20 181 . 241 132 276 143 Remotely . | . . . . . . . . . . . . . . . . Salvage Created 9552 | 212 1413 151 2136 250 1763 . 28 135 13 626 . 340 1003 207 1275 Parts 486 | 12 92 15 116 20 95 . 6 12 1 33 . 15 35 5 29 Haulers Intercepted 15 | . 2 . 6 . 5 . . . . 1 . . 1 . . Recyclers Shooed 10 | . 3 . 1 . 3 . 1 . . 1 . 1 . . . Parts Field Recycled . | . . . . . . . . . . . . . . . . Retrieved Matter . | . . . . . . . . . . . . . . . . Parts Self-Destructed . | . . . . . . . . . . . . . . . . Prevented . | . . . . . . . . . . . . . . . . Kills | -11 -10 -10 -9 -9 -8 -7 -6 -5 -4 -3 -2 -2 -2 -1 -1 ------- Run | Yrd Mat Min Mat Min Mat Fac Fac Fac Fac Res Res Qua Sec Acc Com Combat Hostiles Destroyed 107 | . 23 8 29 6 22 . . . . 3 . . 11 . 5 Melee 2 | . . . . . . . . . . 2 . . . . . Guns 63 | . 23 5 27 . 3 . . . . . . . . . 5 Cannons 12 | . . 3 . 1 8 . . . . . . . . . . AOE 18 | . . . . 5 7 . . . . 1 . . 5 . . Classes Destroyed 17 | 2 7 . 3 . 1 . . . . 1 . . 3 . . Worker 21 | . 1 . 4 1 3 . 1 5 1 3 . 2 . . . Builder 6 | . 1 . . . 3 . . . . 1 . 1 . . . Tunneler 16 | 5 3 2 2 2 . . 1 . . 1 . . . . . Hauler 15 | . 2 . 6 . 5 . . . . 1 . . 1 . . Recycler 17 | 1 3 . 4 1 2 . . . . 2 . 2 . 1 1 Operator 6 | . 4 . 1 . . . . 1 . . . . . . . Watcher 18 | . 3 . 5 . 5 . . . . 2 . . . 1 2 Swarmer 21 | . 3 6 2 6 3 . . . . . . . . . 1 Cutter 3 | . . . . . . . . . . 3 . . . . . Saboteur 1 | . . . . . . . . . . . . . 1 . . Grunt 53 | . 20 2 15 . 10 . . . . . . . 6 . . Brawler 2 | . . . 1 . 1 . . . . . . . . . . Duelist 4 | . . . 2 . . . . . . . . . 2 . . Sentry 16 | . . . 9 . 7 . . . . . . . . . . Hunter 1 | . . . . . 1 . . . . . . . . . . Programmer 2 | . . . . . . . . . . . . . 1 . 1 Combat Programmer 2 | . . . . . . . . . . . . . . . 2 Striker 1 | . . . . . . . . . . . . . 1 . . Best Kill Streak 11 | 5 6 3 5 3 5 . 1 2 1 4 . 4 11 2 4 Combat Bots Only 11 | . 6 3 5 3 4 . . . . 3 . . 11 . 4 Max Kills in Single Turn 5 | 1 2 1 1 2 3 . 1 1 1 2 . 1 5 1 2 Gunslinging 1 | . 1 . . . . . . . . . . . . . . Exploded 5 | . . . . 2 3 . . . . 1 . . 5 . . Melee 1 | . . . . . . . . . . 1 . . . . . Uniques/NPCs Destroyed 1 | . . . . . . . . . . . . . . . 1 MAIN.C Shell (-1/Command) Combat | -11 -10 -10 -9 -9 -8 -7 -6 -5 -4 -3 -2 -2 -2 -1 -1 -------- Run | Yrd Mat Min Mat Min Mat Fac Fac Fac Fac Res Res Qua Sec Acc Com Hostile Shots Fired 1059 | . 67 20 114 6 107 . 4 2 7 14 52 3 394 . 269 Missed 403 | . 12 5 35 2 31 . . 1 5 9 29 1 194 . 79 Hits 656 | . 55 15 79 4 76 . 4 1 2 5 23 2 200 . 190 Melee 17 | . . . 14 . 1 . 1 . . 1 . . . . . Projectile 639 | . 55 15 65 4 75 . 3 1 2 4 23 2 200 . 190 AOE 6 | . . . . . . . . . . 3 . . 1 . 2 Critical Strikes 22 | . . 1 3 . 3 . 1 . . 1 1 . 5 . 7 Actively Blocked 6 | . . . . . . . . . . 1 . . 1 . 4 Damage Taken 10354 | . 639 154 1269 52 1192 . 256 19 117 288 430 55 2176 32 3675 Core 3051 | . 104 16 233 9 114 . 95 . . 69 66 . 869 32 1444 Absorbed by Shields 141 | . . . . . 28 . . . . . . . 113 . . Ignored by Resistances 6557 | . . . . . . . . . . . . . 2136 . 4421 Regen/Repaired (Parts) 374 | . . . 92 . 282 . . . . . . . . . . Core Remaining (%) 76 | 100 . 52 . 39 79 100 88 100 100 94 . . 12 . . Volleys Fired 496 | 20 88 21 122 10 96 1 1 6 . 5 12 4 25 5 80 Largest 3 | 2 2 2 2 2 2 1 1 1 . 1 1 1 2 2 3 Hottest 300 | 70 100 54 81 93 93 90 90 90 . 90 90 120 200 200 300 Shots Fired 924 | 40 172 36 242 15 155 1 1 6 . 5 12 4 33 10 192 Gun 774 | 40 168 21 242 5 74 . . . . . . . 22 10 192 Cannon 108 | . . 15 . 5 59 1 1 6 . 4 12 4 1 . . Launcher 38 | . . . . 5 22 . . . . 1 . . 10 . . Special 4 | . 4 . . . . . . . . . . . . . . Kinetic 341 | 20 84 36 122 5 74 . . . . . . . . . . Thermal 321 | 20 88 . 120 5 59 1 1 6 . 4 12 4 1 . . Explosive 2 | . . . . . 1 . . . . 1 . . . . . Electromagnetic 36 | . . . . 5 21 . . . . . . . 10 . . Slashing 224 | . . . . . . . . . . . . . 22 10 192 Robot Hit Streak 29 | 5 12 5 14 2 7 . . . . . 7 . 4 3 29 Robot Miss Streak 6 | 4 5 5 3 1 6 . . . . . . . 5 6 2 Penetration Max 1 | . . . . . . . . . . . . . 1 . 1 Secondary Targets 4 | . 3 . . . . . . . . . . . . . 1 Max Gunslinging Chain 1 | . 1 . . . . . . . . . . . . . 1 Shots Hit Robots 642 | 24 104 22 172 6 94 . 3 14 1 21 1 17 8 4 151 Core Hits 357 | 8 60 12 66 10 57 . 1 5 1 12 . 6 71 2 46 Critical Kills 1 | . . . 1 . . . . . . . . . . . . Critical Parts Destroyed 3 | . . . 3 . . . . . . . . . . . . Critical Strikes 25 | 1 3 . 17 . 1 . . . . . . 2 1 . . Burn 17 | 1 3 . 13 . . . . . . . . . . . . Smash 4 | . . . 4 . . . . . . . . . . . . Sever 4 | . . . . . 1 . . . . . . 2 1 . . Melee Attacks 303 | . . . 22 . 45 17 34 40 8 65 26 43 3 . . Impact 22 | . . . 22 . . . . . . . . . . . . Slashing 281 | . . . . . 45 17 34 40 8 65 26 43 3 . . Piercing . | . . . . . . . . . . . . . . . . Sneak Attacks 38 | . . . 1 . 6 . 3 8 1 11 . 7 1 . . Combat Hostiles . | . . . . . . . . . . . . . . . . Follow-up Attacks . | . . . . . . . . . . . . . . . . Damage Inflicted 25347 | 249 1477 448 2825 327 3371 . 207 807 66 1233 31 824 3265 302 9915 Guns 16012 | 249 1400 337 2632 72 777 . . . . . . . 328 302 9915 Cannons 934 | . . 111 . 63 729 . . . . . 31 . . . . Explosions 4649 | . 77 . . 192 1392 . . . . 123 . . 2865 . . Melee 3752 | . . . 193 . 473 . 207 807 66 1110 . 824 72 . . Ramming . | . . . . . . . . . . . . . . . . Kinetic 3288 | 83 625 448 1283 72 777 . . . . . . . . . . Thermal 3961 | 166 775 . 1349 63 729 . . . . . 31 . 848 . . Explosive 390 | . 77 . . . 141 . . . . 123 . . 49 . . Electromagnetic 3411 | . . . . 192 1251 . . . . . . . 1968 . . Impact 193 | . . . 193 . . . . . . . . . . . . Slashing 14104 | . . . . . 473 . 207 807 66 1110 . 824 400 302 9915 Piercing . | . . . . . . . . . . . . . . . . Highest Corruption 4 | . . . . 1 2 . 3 . . 1 4 4 2 . . Average Corruption 1 | . . . . 1 1 . 2 . . 1 1 4 1 . . Corruption Purged . | . . . . . . . . . . . . . . . . Corruption Blocked . | . . . . . . . . . . . . . . . . Effects 39 | . . . . 3 20 . 2 . . 1 . 9 4 . . Message Errors 10 | . . . . 1 6 . . . . . . 3 . . . Matter Fused 8 | . . . . 1 4 . . . . 1 . . 2 . . Heat Flow Errors 3 | . . . . . 1 . . . . . . 2 . . . Energy Discharges 6 | . . . . 1 2 . 1 . . . . 1 1 . . Parts Fused 1 | . . . . . . . . . . . . 1 . . . Data Loss (minor) 6 | . . . . . 4 . 1 . . . . 1 . . . Data Loss (major) 2 | . . . . . 1 . . . . . . 1 . . . Misfires 1 | . . . . . . . . . . . . . 1 . . Alerts 2 | . . . . . 2 . . . . . . . . . . Overload Shots . | . . . . . . . . . . . . . . . . Overflow Damage 758 | . . . 133 . 45 . 68 186 . 172 . 94 60 . . Projectiles 15 | . . . . . 15 . . . . . . . . . . Explosions 69 | . . . . . 9 . . . . . . . 60 . . Melee 674 | . . . 133 . 21 . 68 186 . 172 . 94 . . . Knockbacks . | . . . . . . . . . . . . . . . . Impact . | . . . . . . . . . . . . . . . . Kinetic . | . . . . . . . . . . . . . . . . Secondary . | . . . . . . . . . . . . . . . . Self-Inflicted Damage 143 | . . . . 20 64 . . . . 58 . . 1 . . Shots 9 | . . . . 1 6 . . . . 1 . . 1 . . Rammed . | . . . . . . . . . . . . . . . . Targets Rammed . | . . . . . . . . . . . . . . . . Kicked . | . . . . . . . . . . . . . . . . Crushed . | . . . . . . . . . . . . . . . . Highest Temperature 272 | 150 236 39 252 48 269 44 38 136 . 84 150 181 . . 272 Average Temperature 63 | 57 56 17 67 25 76 29 6 62 . 32 46 80 . . 94 Received Heat Transfer 1770 | . 327 63 333 . 459 . 20 . 9 18 . . 91 . 450 Effects 3 | . . . . . 1 . . . . . . . . . 2 Energy Bleed 1 | . . . . . 1 . . . . . . . . . . Interference 2 | . . . . . . . . . . . . . . . 2 Siege Activations . | . . . . . . . . . . . . . . . . Martial Activations . | . . . . . . . . . . . . . . . . Shielding Activations . | . . . . . . . . . . . . . . . . Robots Disrupted 2 | . . . . . . . . . . . . . 2 . . Combat Hostiles . | . . . . . . . . . . . . . . . . Robots Corrupted 11 | . . . 1 . 4 . . . . . . . 6 . . Combat Hostiles 11 | . . . 1 . 4 . . . . . . . 6 . . Parts Fried 20 | . . . 3 . 6 . . . . . . . 11 . . Impact Corruptions 4 | . . . 4 . . . . . . . . . . . . Robots Melted 1 | . . . 1 . . . . . . . . . . . . Combat Hostiles 1 | . . . 1 . . . . . . . . . . . . Parts Melted 16 | 2 2 . 10 . 2 . . . . . . . . . . Heat Transferred 9171 | 555 2294 . 4366 111 1295 . . . . . 50 . 500 . . Parts Sabotaged . | . . . . . . . . . . . . . . . . Parts Stolen . | . . . . . . . . . . . . . . . . Parts Stripped . | . . . . . . . . . . . . . . . . Power Chain Reactions 2 | . . . . . . . . . . . . . 2 . . Alert | -11 -10 -10 -9 -9 -8 -7 -6 -5 -4 -3 -2 -2 -2 -1 -1 ------- Run | Yrd Mat Min Mat Min Mat Fac Fac Fac Fac Res Res Qua Sec Acc Com Maximum Alert Level 5 | . 1 . 1 . 1 . . . . . . . 5 5 4 Low Security (%) 51 | 100 67 100 94 100 93 100 100 100 100 100 100 100 32 . . Level 1 4 | . 32 . 5 . 6 . . . . . . . . . . Level 2 . | . . . . . . . . . . . . . . . . Level 3 . | . . . . . . . . . . . . . . . . Level 4 2 | . . . . . . . . . . . . . . . 99 Level 5 . | . . . . . . . . . . . . . . . . High Security . | . . . . . . . . . . . . . . . . Max Security 42 | . . . . . . . . . . . . . 68 99 . Peak Influence 2390 | 10 367 138 217 93 269 24 17 51 19 186 164 176 2390 1615 1170 Initial 1433 | . . 128 . 26 . 24 2 . . . 95 92 93 1433 1100 Average 706 | 1 186 33 92 26 61 3 3 17 3 44 102 114 1315 1490 1133 Influence Increases 5807 | 30 933 215 956 259 843 32 106 172 34 365 259 234 878 99 392 Destroy 0b10 Robot/C 2220 | . 460 160 580 180 460 . . . . 60 . . 220 . 100 Destroy 0b10 Robot/NC 495 | 30 85 10 110 20 90 . 10 30 5 50 . 25 5 10 15 Destroy Leader 586 | . 130 30 172 30 160 . . . . 16 . . 32 2 14 Allied During Kill 43 | . . . . 29 14 . . . . . . . . . . Successful Hack 262 | . 32 . 41 . 23 . 19 51 . 39 25 32 . . . Select Force Hacks 60 | . 60 . . . . . . . . . . . . . . Disable Machine 480 | . 90 . 15 . 15 15 . 45 . . 15 90 135 60 . Anti-Garrison Action 50 | . . . . . . . . . . . . . . . 50 Destroy Structure 726 | . 46 . 23 . 51 17 32 46 14 80 99 42 111 27 138 Partial Spotted 150 | . 15 . . . 15 . 30 . . 30 30 . 15 . 15 Lose Combat Pursuer 735 | . 15 15 15 . 15 . 15 . 15 90 90 45 360 . 60 Influence Decreases 6307 | 30 603 545 887 328 789 81 111 170 35 196 265 232 183 1117 735 Entered New Map 1995 | . . 202 . 43 . 30 3 . 2 1 75 72 73 957 537 Time Decay 3581 | 30 593 343 707 265 514 51 96 170 19 195 140 160 80 20 198 Lost Part 146 | . 10 . 30 . 10 . 2 . 14 . 50 . 30 . . Lost Ally 220 | . . . . 20 50 . 10 . . . . . . 140 . Purge Threat 365 | . . . 150 . 215 . . . . . . . . . . Squads Dispatched 474 | . 9 . 2 1 2 1 2 1 . 3 . 5 25 420 3 Investigation 13 | . 7 . 2 . 1 . 1 . . . . 2 . . . Extermination 8 | . . . . . . 1 1 1 . 2 . 2 . . 1 Reinforcement 7 | . 2 . . 1 1 . . . . 1 . 1 . . 1 Assault 441 | . . . . . . . . . . . . . 20 420 1 Garrison . | . . . . . . . . . . . . . . . . Intercept 5 | . . . . . . . . . . . . . 5 . . Searches Triggered . | . . . . . . . . . . . . . . . . Construction Impeded 2 | . . . . 1 1 . . . . . . . . . . Haulers Reinforced . | . . . . . . . . . . . . . . . . Active Scanning Responses . | . . . . . . . . . . . . . . . . Cargo Convoy Interrupts . | . . . . . . . . . . . . . . . . Stealth | -11 -10 -10 -9 -9 -8 -7 -6 -5 -4 -3 -2 -2 -2 -1 -1 --------- Run | Yrd Mat Min Mat Min Mat Fac Fac Fac Fac Res Res Qua Sec Acc Com Distress Signals 18 | . 2 1 5 . 1 . . . 1 . 2 1 3 1 1 Communications Jammed 92 | . . . . . . . . . . . 34 . 50 2 6 Distress Signals 82 | . . . . . . . . . . . 34 . 40 2 6 Times Spotted 283 | . 37 8 43 9 39 1 7 2 4 10 13 3 79 3 25 Peak Tracking Total 17 | . 4 3 5 4 6 1 3 1 3 7 14 6 17 1 15 Tactical Retreats 25 | . 1 1 1 . 1 . 1 . 1 2 2 1 10 . 4 Traps | -11 -10 -10 -9 -9 -8 -7 -6 -5 -4 -3 -2 -2 -2 -1 -1 ------- Run | Yrd Mat Min Mat Min Mat Fac Fac Fac Fac Res Res Qua Sec Acc Com Traps Triggered 15 | . 3 . . . . . 3 . . 2 . 1 5 . 1 Indirectly . | . . . . . . . . . . . . . . . . Trap Hack Attempts . | . . . . . . . . . . . . . . . . Triggered . | . . . . . . . . . . . . . . . . Disarmed . | . . . . . . . . . . . . . . . . Reprogrammed . | . . . . . . . . . . . . . . . . Reused . | . . . . . . . . . . . . . . . . Traps Extracted . | . . . . . . . . . . . . . . . . Installed . | . . . . . . . . . . . . . . . . Triggered . | . . . . . . . . . . . . . . . . Machines | -11 -10 -10 -9 -9 -8 -7 -6 -5 -4 -3 -2 -2 -2 -1 -1 ---------- Run | Yrd Mat Min Mat Min Mat Fac Fac Fac Fac Res Res Qua Sec Acc Com Machines Disabled 34 | . 6 . 1 . 1 1 . 3 . . 1 6 10 4 1 Max in Single Turn 2 | . 2 . 1 . 1 1 . 1 . . 1 1 1 1 1 Garrison Access 6 | . . . . . 1 1 1 . 1 1 1 . . . . Phase Generator 1 | . . . . . . . . . . . . . . . 1 Machines Repaired . | . . . . . . . . . . . . . . . . Machines Dismantled 4 | . . . . . . . . . . . . . 1 2 1 Machines Sabotaged . | . . . . . . . . . . . . . . . . Overloaded Fab Kills . | . . . . . . . . . . . . . . . . Hacking | -11 -10 -10 -9 -9 -8 -7 -6 -5 -4 -3 -2 -2 -2 -1 -1 --------- Run | Yrd Mat Min Mat Min Mat Fac Fac Fac Fac Res Res Qua Sec Acc Com Machines Accessed 91 | . 9 1 16 . 13 5 10 8 2 11 4 4 6 . 2 Terminals 60 | . 6 . 12 . 8 1 6 5 . 7 3 4 6 . 2 Fabricators 6 | . . . . . . 1 1 2 1 1 . . . . . Repair Stations 5 | . 1 . 1 . 1 . . 1 . 1 . . . . . Recycling Units 10 | . 2 . 1 . 2 2 2 . . 1 . . . . . Scanalyzers 3 | . . . 2 . 1 . . . . . . . . . . Garrison Access 6 | . . . . . 1 1 1 . 1 1 1 . . . . Total Hacks 224 | . 26 1 43 . 39 9 25 18 2 28 9 12 10 . 2 Successful 110 | . 12 1 24 . 27 5 6 9 2 10 4 5 5 . . Failed 113 | . 14 . 18 . 12 4 19 9 . 18 5 7 5 . 2 Catastrophic 14 | . 1 . 1 . . . 3 3 . 3 . 3 . . . Database Lockouts 1 | . . . 1 . . . . . . . . . . . . Manual 118 | . 18 . 30 . 20 2 11 12 . 10 1 9 4 . 1 Terminals 169 | . 19 . 38 . 26 2 17 13 . 23 7 12 10 . 2 Fabricators 8 | . . . . . . 2 2 2 1 1 . . . . . Repair Stations 16 | . 2 . 2 . 8 . . 3 . 1 . . . . . Recycling Units 17 | . 5 . 1 . 2 3 4 . . 2 . . . . . Scanalyzers 3 | . . . 2 . 1 . . . . . . . . . . Garrison Access 10 | . . . . . 2 2 2 . 1 1 2 . . . . Terminal Hacks 51 | . 4 1 13 . 12 1 2 3 . 6 3 2 4 . . Record 1 | . . . . . . . . . . . 1 . . . . Part Schematic 1 | . . . 1 . . . . . . . . . . . . Robot Schematic 1 | . 1 . . . . . . . . . . . . . . Robot Analysis 6 | . 3 . 2 . 1 . . . . . . . . . . Prototype ID Bank 7 | . . . 2 . 3 . . . . 2 . . . . . Open Door 4 | . . 1 . . . . . . . . 1 . 2 . . Level Access Points 4 | . . . . . . 1 1 1 . 1 . . . . . Branch Access Points 3 | . . . 1 . . . . . . 1 1 . . . . Machine Index 1 | . . . . . . . . 1 . . . . . . . Terminal Index 2 | . . . . . 1 . . . . . . 1 . . . Unreport Threat 3 | . . . 1 . 2 . . . . . . . . . . Locate Traps 3 | . . . 1 . 2 . . . . . . . . . . Maintenance Status 2 | . . . 1 . . . . 1 . . . . . . . Recall Extermination 1 | . . . . . . . . . . 1 . . . . . Hauler Manifests 4 | . . . 2 . 2 . . . . . . . . . . Registered Components 2 | . . . 1 . 1 . . . . . . . . . . Zone Layout 4 | . . . 1 . . . 1 . . 1 . 1 . . . Activate Exoskeleton 2 | . . . . . . . . . . . . . 2 . . Fabricator Hacks 4 | . . . . . . 1 . 2 1 . . . . . . Network Status 4 | . . . . . . 1 . 2 1 . . . . . . Repair Station Hacks 12 | . 1 . 2 . 7 . . 2 . . . . . . . Scan Component 8 | . 1 . 1 . 4 . . 2 . . . . . . . Repair 4 | . . . 1 . 3 . . . . . . . . . . Recycling Unit Hacks 10 | . 2 . 1 . 2 2 2 . . 1 . . . . . Retrieve Components 10 | . 2 . 1 . 2 2 2 . . 1 . . . . . Scanalyzer 3 | . . . 2 . 1 . . . . . . . . . . Insert Component 3 | . . . 2 . 1 . . . . . . . . . . Garrison Access Hacks 6 | . . . . . 1 1 1 . 1 1 1 . . . . Seal Access 6 | . . . . . 1 1 1 . 1 1 1 . . . . Unauthorized Hacks 24 | . 5 . 6 . 4 . 1 2 . 2 . 3 1 . . Terminals 22 | . 3 . 6 . 4 . 1 2 . 2 . 3 1 . . Assimilate 6 | . 1 . 2 . 1 . 1 . . . . 1 . . . Botnet 14 | . 2 . 3 . 2 . . 2 . 2 . 2 1 . . Operators 2 | . . . 1 . 1 . . . . . . . . . . Fabricators . | . . . . . . . . . . . . . . . . Repair Stations . | . . . . . . . . . . . . . . . . Recycling Units 2 | . 2 . . . . . . . . . . . . . . Tunnel 2 | . 2 . . . . . . . . . . . . . . Scanalyzers . | . . . . . . . . . . . . . . . . Garrison Access . | . . . . . . . . . . . . . . . . Data Cores Recovered 2 | . 1 . 1 . . . . . . . . . . . . Used 2 | . 1 . 1 . . . . . . . . . . . . Hacking Detections 71 | . 9 . 13 . 9 3 10 7 1 8 2 4 3 . 2 Full Trace Events 8 | . 2 . 2 . 1 . 1 . . . . 2 . . . Feedback Events . | . . . . . . . . . . . . . . . . Feedback Blocked . | . . . . . . . . . . . . . . . . Robot Schematics Acquired 1 | . 1 . . . . . . . . . . . . . . Robots Built . | . . . . . . . . . . . . . . . . Authchips . | . . . . . . . . . . . . . . . . Time . | . . . . . . . . . . . . . . . . Total Robot Build Rating . | . . . . . . . . . . . . . . . . Part Schematics Acquired 1 | . . . 1 . . . . . . . . . . . . Parts Built . | . . . . . . . . . . . . . . . . Authchips . | . . . . . . . . . . . . . . . . Time . | . . . . . . . . . . . . . . . . Total Part Build Rating . | . . . . . . . . . . . . . . . . Parts Repaired 4 | . . . 1 . 3 . . . . . . . . . . Time 146 | . . . 38 . 108 . . . . . . . . . . Parts Recycled . | . . . . . . . . . . . . . . . . Recycled Matter . | . . . . . . . . . . . . . . . . Retrieved Matter . | . . . . . . . . . . . . . . . . Retrieved Components 30 | . 10 . 4 . 10 2 3 . . 1 . . . . . Parts Scanalyzed . | . . . . . . . . . . . . . . . . Part Schematics Acquired . | . . . . . . . . . . . . . . . . Parts Damaged . | . . . . . . . . . . . . . . . . Bothacking | -11 -10 -10 -9 -9 -8 -7 -6 -5 -4 -3 -2 -2 -2 -1 -1 ------------ Run | Yrd Mat Min Mat Min Mat Fac Fac Fac Fac Res Res Qua Sec Acc Com Used RIF Installer . | . . . . . . . . . . . . . . . . Robots Hacked . | . . . . . . . . . . . . . . . . Non-combat . | . . . . . . . . . . . . . . . . Combat . | . . . . . . . . . . . . . . . . Robot Hacks Applied . | . . . . . . . . . . . . . . . . Relay Couplers Released . | . . . . . . . . . . . . . . . . Fabnet Peak Effective % . | . . . . . . . . . . . . . . . . Robots Rewired . | . . . . . . . . . . . . . . . . Allies Hacked . | . . . . . . . . . . . . . . . . Hacks Repelled . | . . . . . . . . . . . . . . . . Allies | -11 -10 -10 -9 -9 -8 -7 -6 -5 -4 -3 -2 -2 -2 -1 -1 -------- Run | Yrd Mat Min Mat Min Mat Fac Fac Fac Fac Res Res Qua Sec Acc Com Total Allies 36 | . . . 1 3 1 . . . . . . . . 15 16 Largest Group 8 | . . . 1 4 3 1 1 . . . . . . 7 8 Highest-Rated Group 112 | . . . 10 50 42 10 10 . . . . . . 100 112 Highest-Rated Ally 16 | . . . 10 16 16 10 10 . . . . . . 15 15 Total Orders 11 | . . . 4 2 5 . . . . . . . . . . STAY 6 | . . . 2 1 3 . . . . . . . . . . FOLLOW 5 | . . . 2 1 2 . . . . . . . . . . Ally Attacks 57 | . . . . 16 22 . . . . . . . . 19 . Total Damage 600 | . . . . 123 234 . . . . . . . . 243 . Kills 4 | . . . . 3 1 . . . . . . . . . . Allies Corrupted 2 | . . . . . . . . . . . . . . 2 . Allies Melted . | . . . . . . . . . . . . . . . . Intel | -11 -10 -10 -9 -9 -8 -7 -6 -5 -4 -3 -2 -2 -2 -1 -1 ------- Run | Yrd Mat Min Mat Min Mat Fac Fac Fac Fac Res Res Qua Sec Acc Com Active Infowar (turns) 23190 | 47 1994 1473 2655 804 2679 296 393 409 113 589 295 324 492 10356 271 Optics 1427 | . . . . . . 275 393 409 113 237 . . . . . Sensors 2011 | . . . . . . . 388 386 104 557 217 294 65 . . Seismic 10845 | 47 1994 1473 2655 804 2679 233 . 332 . . 271 294 63 . . T.N.C. 1459 | . . . . . . . . 36 113 589 295 324 102 . . Cloaking 96 | . . . . . . . . . . . 96 . . . . Jamming 11563 | . . . . . . . . . . 259 106 102 469 10356 271 Robot Analysis Total 6 | . 3 . 2 . 1 . . . . . . . . . . Derelict Logs Recovered 3 | . . 2 . 1 . . . . . . . . . . . Drone Launches . | . . . . . . . . . . . . . . . . Drone Recoveries . | . . . . . . . . . . . . . . . . Exploration | -11 -10 -10 -9 -9 -8 -7 -6 -5 -4 -3 -2 -2 -2 -1 -1 ------------- Run | Yrd Mat Min Mat Min Mat Fac Fac Fac Fac Res Res Qua Sec Acc Com Turns Passed 25057 | 149 2026 1473 3647 851 3137 296 393 409 113 589 295 324 500 10356 499 Spaces Moved 12822 | 79 892 429 1909 570 1585 635 917 971 314 1240 518 599 1084 292 788 Core 2 | 2 . . . . . . . . . . . . . . . Treads 62 | 1 61 . . . . . . . . . . . . . . Legs 1812 | . . . . . . . . . . . . . 846 290 676 Wheels 5408 | 76 831 429 1909 570 1585 8 . . . . . . . . . Hover . | . . . . . . . . . . . . . . . . Flight 5413 | . . . . . . 627 917 971 314 1240 518 599 227 . . Fastest Speed 13 | 50 95 175 135 135 135 24 24 27 25 13 13 22 25 30 30 Average Speed 82 | 92 185 213 141 137 149 28 25 27 26 26 22 26 29 30 30 Slowest Speed 215 | 160 215 215 195 150 150 150 29 29 29 28 27 27 31 30 30 Overloaded Moves 54 | . . . . . . . 14 . . 12 18 10 . . . Propulsion Burnouts 1 | . . . . . . . . . . . 1 . . . . Robots Hopped 17 | . . . . . . . . 1 . 3 11 . 2 . . Potential Cave-ins 1 | . . . . . . . . 1 . . . . . . . Cave-ins Triggered . | . . . . . . . . . . . . . . . . Teleports 4 | . . . . . . . . . . . . . 4 . . Spacefolds 10 | . . . . . . . . . . . . . 4 1 5 Microwarps 9 | . . . . . . . . . . . . . . . 9 Exploration Rate (%) 48 | 4 99 78 99 97 85 17 28 27 12 31 19 78 70 5 32 Regions Visited 15 Branch Regions 5 Pre-discovered Areas 4 | . 2 2 . . . . . . . . . . . . . Known Exits Taken 10 | . . . 1 . 1 1 1 1 1 1 1 1 1 . . Unknown Exits Taken 5 | 1 1 1 . 1 . . . . . . . . . 1 . Scrap Searched 2 | . . 1 . 1 . . . . . . . . . . . Spaces Dug 282 | . 4 . 18 . 49 17 32 23 7 54 34 14 2 . 28 Terrain Destroyed 434 | . 43 . 18 . 49 17 32 23 7 54 34 14 39 9 95 Melee 197 | . . . 18 . 34 16 31 17 7 34 25 13 2 . . Projectile 140 | . 4 . . . . 1 1 6 . 3 9 1 11 9 95 AOE 97 | . 39 . . . 15 . . . . 17 . . 26 . . Terrain Rammed . | . . . . . . . . . . . . . . . . Walls Destroyed . | . . . . . . . . . . . . . . . . Machines Disabled . | . . . . . . . . . . . . . . . . Actions | -11 -10 -10 -9 -9 -8 -7 -6 -5 -4 -3 -2 -2 -2 -1 -1 --------- Run | Yrd Mat Min Mat Min Mat Fac Fac Fac Fac Res Res Qua Sec Acc Com Total 25940 | 115 1107 955 2602 620 2126 723 1022 1047 331 1390 635 696 1204 10516 851 Wait 11733 | . 52 482 393 30 307 23 44 9 2 60 78 20 14 10182 37 Move 12670 | 78 891 428 1908 569 1584 634 916 968 313 1234 498 598 1072 290 689 Hop 13 | . . . . . . . . 1 . 2 8 . 2 . . Pick Up 150 | 9 27 8 36 2 14 12 7 4 2 4 1 7 13 1 3 Fast Attach 51 | 7 2 . 4 . 6 3 3 3 1 3 1 5 10 2 1 Attach 61 | . 1 1 5 . 1 8 4 5 2 1 4 5 11 1 12 Detach 22 | . . . 1 . . 1 . 2 . . 3 3 2 . 10 Swap 211 | . 24 7 67 6 53 6 7 5 2 12 3 2 11 2 4 Drop 151 | 1 22 8 44 3 20 16 6 4 1 4 1 9 6 1 5 Fire 496 | 20 88 21 122 10 96 1 1 6 . 5 12 4 25 5 80 Melee 303 | . . . 22 . 45 17 34 40 8 65 26 43 3 . . Ram . | . . . . . . . . . . . . . . . . Kick . | . . . . . . . . . . . . . . . . Crush . | . . . . . . . . . . . . . . . . Escape Stasis 26 | . . . . . . . . . . . . . 25 . 1 Rewire . | . . . . . . . . . . . . . . . . Trap . | . . . . . . . . . . . . . . . . Miscellaneous 53 | . . . . . . 2 . . . . . . 10 32 9 Route ------- -11/Scrapyard -10/Materials (discovered 5 exits: *Mat x3 / *Min / [*Sub]) -10/Mines (discovered 4 exits: *Mat x2 / [*Exi] / [*Sub]) -9/Materials (discovered 6 exits: *Mat x3 / *Min x2 / *Sto) -9/Mines (discovered 3 exits: *Mat x2 / [*Zio]) -8/Materials (discovered 3 exits: *Fac x3) -7/Factory (discovered 4 exits: *Fac x4) -6/Factory (discovered 5 exits: *Fac x4 / *Low) -5/Factory (discovered 4 exits: *Fac x4) -4/Factory (discovered 2 exits: *Res x2) -3/Research (discovered 5 exits: *Res x3 / Tes x2) -2/Research (discovered 2 exits: *Qua x2) -2/Quarantine (discovered 3 exits: *Acc / *Sec / [*Frg]) -2/Section 7 -1/Access -1/Command (discovered 1 exit: [Sur]) History --------- Turn | Location | Event 18 | -11/Scrapyard | Discovered new exit (range 16) 150 | -11/Scrapyard | Entered Materials 325 | -10/Materials | Discovered new exit (range 10) 328 | -10/Materials | Build established: Mutant 509 | -10/Materials | Discovered new exit (range 9) 837 | -10/Materials | Discovered new exit (range 12) 1031 | -10/Materials | Discovered new exit (range 14) 1810 | -10/Materials | Discovered new exit (range 14) 2176 | -10/Materials | Entered Mines 2217 | -10/Mines | A weapon hastily lodged in a ceiling crevice suddenly fell to the ground 2320 | -10/Mines | Learned location of Zion (-7) 2464 | -10/Mines | Deemed a non-threat by the Exiles lab entrance 2464 | -10/Mines | Discovered new exit (range 5) 2619 | -10/Mines | Discovered new exit (range 10) 2803 | -10/Mines | Discovered new exit (range 9) 2875 | -10/Mines | Learned location of Storage (-9) 2958 | -10/Mines | Discovered new exit (range 6) 3114 | -10/Mines | Met a Derelict who couldn't figure out how to use a Trap Extractor 3649 | -10/Mines | Entered Materials 3649 | -9/Materials | Evolved 2 slots: Propulsion x1, Utility x1 3918 | -9/Materials | Identified exit to Mines 3918 | -9/Materials | Identified exit to Storage 4673 | -9/Materials | Central database locked down 4748 | -9/Materials | Discovered new exit (range 4) 5305 | -9/Materials | Discovered new exit (range 5) 5568 | -9/Materials | Repaired Minigun 5920 | -9/Materials | Discovered new exit (range 13) 6626 | -9/Materials | Core integrity fell below 50% 7296 | -9/Materials | Entered Mines 7296 | -9/Mines | Accompanied by 1 ally 7298 | -9/Mines | Met a Derelict bent on vengeance 7302 | -9/Mines | Assisted by bots powering up and referring to "LRC-V3" 7511 | -9/Mines | Discovered new exit (range 4) 7603 | -9/Mines | Found a damaged Exp. Sensor Array with a note attached 7604 | -9/Mines | Build established: Commander-Mutant 7606 | -9/Mines | Found Prototype Device 7629 | -9/Mines | A Derelict revealed a hidden shortcut to a safe place 7711 | -9/Mines | Learned location of 1 exit from Materials 7828 | -9/Mines | Received a Rocket Launcher from a helpful Derelict 7926 | -9/Mines | Build established: Mutant 7977 | -9/Mines | Discovered new exit (range 6) 8147 | -9/Mines | Entered Materials 8147 | -8/Materials | Accompanied by 3 allies 8147 | -8/Materials | Evolved 2 slots: Propulsion x1, Utility x1 8148 | -8/Materials | Identified exit to Factory 9045 | -8/Materials | Discovered exit to Factory (range 16) 10023 | -8/Materials | Repaired Shock Bomb Launcher 10065 | -8/Materials | Repaired Minigun 10099 | -8/Materials | Repaired Arm. Wheel 10217 | -8/Materials | Discovered exit to Factory (range 15) 11190 | -8/Materials | Identified Exp. Sensor Array 11284 | -8/Materials | Entered Factory 11284 | -7/Factory | Accompanied by 1 ally 11284 | -7/Factory | Evolved 2 slots: Propulsion x2 11518 | -7/Factory | Identified exit to Factory 11580 | -7/Factory | Entered another Factory area 11580 | -6/Factory | Accompanied by 1 ally 11580 | -6/Factory | Evolved 2 slots: Utility x2 11590 | -6/Factory | Found Prototype Launcher 11728 | -6/Factory | Discovered new exit (range 7) 11739 | -6/Factory | Identified exit to Lower Caves 11864 | -6/Factory | Lost 3 parts (1p1n1w) 11878 | -6/Factory | Identified exit to Factory 11907 | -6/Factory | Build established: Hacker-Scout 11961 | -6/Factory | Assembled infested ambush trap array 11973 | -6/Factory | Entered another Factory area 11973 | -5/Factory | Evolved 2 slots: Utility x2 11983 | -5/Factory | Identified exit to Factory 12382 | -5/Factory | Entered another Factory area 12382 | -4/Factory | Evolved 2 slots: Propulsion x1, Utility x1 12449 | -4/Factory | Spotted B-86 Titan 12454 | -4/Factory | Discovered new exit (range 18) 12489 | -4/Factory | Discovered new exit (range 17) 12494 | -4/Factory | Identified exit to Research 12495 | -4/Factory | Entered Research 12495 | -3/Research | Evolved 2 slots: Power x1, Utility x1 12739 | -3/Research | Discovered new exit (range 12) 12741 | -3/Research | Identified exit to Research 12810 | -3/Research | Build established: Hacker-Ninja 12836 | -3/Research | Identified exit to Testing 13081 | -3/Research | Found Gamma Bomb Array 13084 | -3/Research | Entered another Research area 13084 | -2/Research | Evolved 2 slots: Utility x2 13088 | -2/Research | Identified exit to Quarantine 13238 | -2/Research | Spotted B-90 Cyclops 13379 | -2/Research | Entered Quarantine 13387 | -2/Quarantine | Found Alien Artifact 13387 | -2/Quarantine | Identified Phase Redirector 13404 | -2/Quarantine | Lost 3 parts (2n1u) 13413 | -2/Quarantine | Found Alien Artifact 13413 | -2/Quarantine | Identified Phase Armor 13510 | -2/Quarantine | Found Alien Artifact 13519 | -2/Quarantine | Discovered new exit (range 16) 13537 | -2/Quarantine | Found Alien Artifact 13542 | -2/Quarantine | Found Alien Artifact 13545 | -2/Quarantine | Identified exit to Access 13603 | -2/Quarantine | Found Alien Artifact 13635 | -2/Quarantine | Found Alien Reactor 13635 | -2/Quarantine | Identified Matter Drive 13682 | -2/Quarantine | Spotted Fortress 13702 | -2/Quarantine | Discovered new exit (range 5) 13702 | -2/Quarantine | Discovered new exit (range 6) 13703 | -2/Quarantine | Identified exit to Section 7 13703 | -2/Quarantine | Entered Section 7 13703 | -2/Section 7 | Identified Core Reset Matrix 13703 | -2/Section 7 | Identified Subatomic Replicator 13703 | -2/Section 7 | Identified Hpw. Transdimensional Reconstructor 13703 | -2/Section 7 | Used Core Reset Matrix 13707 | -2/Section 7 | Detected hypermatrix surge 13707 | -2/Section 7 | Sensed 21 artifacts in vicinity 13772 | -2/Section 7 | Warped through subspace 13772 | -2/Section 7 | Spotted Alpha 7 13772 | -2/Section 7 | Spotted Alpha 7 13805 | -2/Section 7 | Integrated with Sigix Exoskeleton 13806 | -2/Section 7 | Lost 3 parts (1p1n1u) 13848 | -2/Section 7 | Found Transdimensional Reconstructor 13850 | -2/Section 7 | Found Transdimensional Reconstructor 13851 | -2/Section 7 | Found Hpw. Transdimensional Reconstructor 13864 | -2/Section 7 | Found Terrabomb 13866 | -2/Section 7 | Spotted Executioner 13868 | -2/Section 7 | Spotted Executioner 13882 | -2/Section 7 | Warped through subspace 13882 | -2/Section 7 | Spotted Executioner 13882 | -2/Section 7 | Spotted Executioner 13909 | -2/Section 7 | Spotted B-99 Colossus 13923 | -2/Section 7 | Found Core Expander 13923 | -2/Section 7 | Installed Core Expander, added new Utility slot 13958 | -2/Section 7 | Found LRC Storage 13960 | -2/Section 7 | Found LRC Insulator 13961 | -2/Section 7 | Installed LRC Insulator, 1 resistance modified: EM +25% 13962 | -2/Section 7 | Installed LRC Storage, increased inventory capacity (+2) 14012 | -2/Section 7 | Spotted Striker 14017 | -2/Section 7 | Spotted Investigator 14020 | -2/Section 7 | Scanned by Researcher 14020 | -2/Section 7 | Spotted Executioner 14021 | -2/Section 7 | Intercept squad dispatched 14022 | -2/Section 7 | Destroyed Striker 14023 | -2/Section 7 | Warped through subspace 14027 | -2/Section 7 | Warped through subspace 14043 | -2/Section 7 | Destroyed 11 combat bots 14061 | -2/Section 7 | Found Terrabomb 14075 | -2/Section 7 | Core integrity fell below 50% 14078 | -2/Section 7 | Spotted Tracker 14081 | -2/Section 7 | Spotted Executioner 14089 | -2/Section 7 | Spotted S7 Guard 14093 | -2/Section 7 | Found Core Membrane 14093 | -2/Section 7 | Installed Core Membrane, gained immunity to corruption 14110 | -2/Section 7 | Sigix Exoskeleton integrity reduced to 80% 14114 | -2/Section 7 | Build established: Alien-Sigix 14132 | -2/Section 7 | Found Spacefold Activator 14135 | -2/Section 7 | Intercept squad dispatched 14146 | -2/Section 7 | Spotted Tracker 14147 | -2/Section 7 | Spotted Tracker 14147 | -2/Section 7 | Spotted Tracker 14158 | -2/Section 7 | Found Microwarp Drive 14173 | -2/Section 7 | Spotted Combat Programmer 14182 | -2/Section 7 | Core integrity fell below 20% 14197 | -2/Section 7 | Discovered exit to Access (range 18) 14203 | -2/Section 7 | Sigix Exoskeleton integrity reduced to 60% 14203 | -2/Section 7 | Entered Access 14203 | -1/Access | Evolved 2 slots: Utility x1, Weapon x1 14208 | -1/Access | Emitted hypermatrix ping 14213 | -1/Access | Assembled emerged from beneath the floor 14262 | -1/Access | Assembled emerged from beneath the floor 14274 | -1/Access | Discovered new exit (range 17) 24559 | -1/Access | Entered Command 24564 | -1/Command | Emitted hypermatrix ping 24569 | -1/Command | Assembled emerged from beneath the floor 24642 | -1/Command | Phase Generator disabled 24695 | -1/Command | Assembled emerged from beneath the floor 24809 | -1/Command | First assault squad dispatched 24817 | -1/Command | Discovered new exit (range 17) 24840 | -1/Command | Used Subatomic Replicator to replicate Sigix Sheargun 24847 | -1/Command | Spotted M Guard 24847 | -1/Command | Spotted M Guard 24847 | -1/Command | Spotted Combat Programmer 24847 | -1/Command | Spotted Combat Programmer 24860 | -1/Command | Met MAIN.C 24860 | -1/Command | 0b10 Conduit disabled 24970 | -1/Command | MAIN.C's shell transforms into a squad of autonomous robots 24970 | -1/Command | Destroyed MAIN.C Shell 24970 | -1/Command | Spotted M Shell/Def 24970 | -1/Command | Spotted M Shell/Atk 24970 | -1/Command | Spotted M Shell/Def 24970 | -1/Command | Spotted M Shell/Atk 24970 | -1/Command | Spotted M Shell/Atk 24970 | -1/Command | Spotted M Shell/Def 24970 | -1/Command | Spotted M Shell/Def 24970 | -1/Command | Spotted M Shell/Atk 24971 | -1/Command | Sigix Exoskeleton integrity reduced to 40% 24971 | -1/Command | Core integrity fell below 50% 24973 | -1/Command | MAIN.C activated Command garrisons 24999 | -1/Command | Destroyed Combat Programmer 25008 | -1/Command | Destroyed Combat Programmer 25022 | -1/Command | Sigix Exoskeleton integrity reduced to 20% 25027 | -1/Command | Core integrity fell below 20% 25058 | -1/Command | Exoskeleton Destroyed Last Messages --------------- 25030_ Quantum Shear penetrates MAIN.C. 25032_ Quantum Shear penetrates Earth. 25032_ Quantum Shear penetrates MAIN.C. 25035_ Quantum Shear penetrates Earth. 25035_ Quantum Shear penetrates MAIN.C. 25037_ Acquired 19 matter. 25038_ Quantum Shear penetrates MAIN.C. 25040_ K-01 Serf collects debris. 25040_ Quantum Shear penetrates K-01 Serf. 25040_ Destroyed Unknown Wheel. 25040_ Quantum Shear penetrates MAIN.C. 25046_ Destroyed Prototype Ballistic Gun. 25048_ Quantum Shear penetrates Earth. 25048_ Quantum Shear penetrates MAIN.C. 25054_ Quantum Shear penetrates Earth. 25054_ Quantum Shear penetrates MAIN.C. 25056_ Destroyed Prototype Ballistic Gun. 25056_ Quantum Shear penetrates Earth. 25056_ Quantum Shear penetrates MAIN.C. 25058_ Sigix Exoskeleton destroyed. Map ----- +----------------------------------------------------+ | ?????????????????????????????????????????????????? | | ?????????????????????????????????????????????????? | | ?????????????????????????????????????????????????? | | ?????????????????????????#???????????????????????? | | ????????????????????###########??????????????????? | | ?????????????????#################???????????????? | | ????????????????###################??????????????? | | ??????????????#######################????????????? | | ?????????????#########################???????????? | | ????????????###########################??????????? | | ???????????#############################?????????? | | ???????????#############################?????????? | | ??????????###############################????????? | | ?????????######################### ???????? | | ?????????######################### ??????? | | ?????????#########################"" "" ?????? | | ????????##########################"" """" ????? | | ????????##########################"" """" ???? | | ???????###########################T "" ???? | | ??????############################"" #??? | | ??????###################### #####"" #"?? | | ??????############## = # ######"" = #"?? | | ?????############### ;####### # ?? | | ?????############### % %######## # ? | | ?????############### =[%######## # ? | | ?????############# ; |%%X#################+### | | ?????############# ; =M**%############### ##### | | ????############# ;=%/==###### """"" # " | | ?????########## !%** + ""Y"" # | | ?????####### ### ;[;####### # ##### | | ?????#### #### ; ######## ## ###### | | ?????######### ## ######## [## ##### | | ?????######### ### ######## ## ##### | | ??????########## #### ######## s ## ##### | | ??????######### #### ####### Y ## ##### | | ??????######## ##### " ##############+## #### | | ???????####### ###### ############ #### | | ????????##### ######## ############# #### | | ????????############## ############# ### | | ?????????############# #############"" ##### | | ??????????############ #############"" ##### | | ???????????########### #############"" ##### | | ?????????????######### #############T ""### | | ??????????????######## #############"" # | | ?????????????????##### #############"" # | | ????????????????????## #### #####"" # = | | ????????????????????????? ?? #[ ] | | ???????????????????????????? # ] | | ????????????????????????????? ##### # | | ?????????????????????????????####### # | +----------------------------------------------------+ Best States ------------- Heat Dissipation 122 Energy Generation 67 Energy Capacity 450 Matter Stores 300 Matter Capacity 300 Sight Range 18 Robot Scan Range 20 Terrain Scan Density 10 Jamming Range 16 Cloak Strength 3 Additional Mass Support 9 Armor Coverage 300 Resistance: KI 50 Resistance: TH 50 Resistance: EX 50 Resistance: EM 75 Resistance: I 50 Resistance: S 50 Resistance: P 50 Evasion (%) 81 Core Analysis 6 Recoil Reduction 2 Offensive Hacking 34 Defensive Hacking 14 Authchip Count 1 Item Schematics ----------------- None Robot Schematics ------------------ None Fabricated ------------ Nothing Repaired ---------- Minigun | 26% | -9/Materials Shock Bomb Launcher | 4% | -8/Materials Minigun | 7% | -8/Materials Arm. Wheel | 6% | -8/Materials Alien Tech Used ----------------- Phase Redirector Phase Armor Matter Drive Core Reset Matrix High-powered Transdimensional Reconstructor Sigix Exoskeleton Sigix Sheargun Core Expander LRC Insulator LRC Storage Transdimensional Reconstructor Core Membrane Spacefold Activator Microwarp Drive Subatomic Replicator Achievements -------------- Artifact Hunter Challenges ------------ None Game ------ Seed StealthPersonalCutter Manual? 0 Play Time 03:46:05 Cumulative 182.3 hours Start 2025.10.04 @ 19:59:38 End 2025.10.06 @ 18:25:04 Sessions 9 Manual Loads 0 Difficulty Rogue Special Mode None Game No. 56 Rogue 50 Adventurer 0 Explorer 6 Win Type - Total 10 Types 6/0/2/1/0/0/0/1/0/0 Lore% 75 Gallery% 66 Achievement% 64 Wizard Run 0 Options --------- Layout 1 ASCII 0 Keyboard 0 Movement Mouse Keybinds 0 Fullscreen 2 Font 24/Smallcaps Map View 50x35 Zoom Use 0% Tactical HUD 1 Map Filters NONE Filters NONE Steam 1 RUN: f26522b9-c7a0-4ccb-b0df-2ee6749f7a8d